bitfinex/quotes_BTCUSD_20241206
["timestamp","ask_amount","ask_price","bid_price","bid_amount"]
[1733464856870,0.3777,97901.0,97900.0,0.0008651]
[1733464857041,0.48273154,97901.0,97900.0,0.0008651]
[1733464861298,0.52773154,97901.0,97900.0,0.0008651]
[1733464862170,0.52773154,97901.0,97882.0,0.09149537]
[1733464862171,0.1227,97885.0,97882.0,0.09149537]
[1733464862576,0.1227,97885.0,97883.0,0.00011856]
[1733464862577,0.10503154,97884.0,97883.0,0.00011856]
[1733464863222,0.23273154,97884.0,97883.0,0.00011856]
[1733464863442,0.22773154,97884.0,97883.0,0.00011856]
[1733464863660,0.52773154,97884.0,97883.0,0.00011856]
[1733464872102,0.10503154,97884.0,97883.0,0.00011856]
[1733464872491,0.10820101,97893.0,97883.0,0.00011856]
[1733464872722,0.10503154,97893.0,97883.0,0.00011856]
[1733464872930,0.3,97898.0,97883.0,0.00011856]
[1733464873140,0.10503154,97897.0,97883.0,0.00011856]
[1733464873362,0.3,97898.0,97883.0,0.00011856]
[1733464873787,0.3,97898.0,97888.0,0.023]
[1733464873986,0.3,97898.0,97883.0,0.00114008]
[1733464874208,0.10820101,97900.0,97883.0,0.00114008]
[1733464874412,0.10503154,97899.0,97883.0,0.00114008]
[1733464874631,0.10503154,97899.0,97883.0,0.02414008]
[1733464874828,0.10820101,97900.0,97884.0,0.02402152]
[1733464875401,0.10820101,97900.0,97884.0,0.00102152]
[1733464876364,0.3017302,97910.0,97884.0,0.00102152]
[1733464876365,0.10993121,97910.0,97884.0,0.00102152]
[1733464876564,0.10820101,97900.0,97884.0,0.00102152]
[1733464877447,0.10503154,97899.0,97883.0,0.00011856]
[1733464877653,0.10820101,97893.0,97883.0,0.00011856]
[1733464887591,0.10503154,97892.0,97883.0,0.00011856]
[1733464888701,0.0801,97887.0,97883.0,0.00011856]
[1733464888907,0.10503154,97886.0,97883.0,0.00011856]
[1733464893097,0.61640202,97893.0,97883.0,0.00011856]
[1733464893098,0.25043154,97884.0,97883.0,0.00011856]
[1733464893309,0.33033154,97884.0,97883.0,0.00011856]
[1733464893507,0.36336469,97884.0,97883.0,0.00011856]
[1733464893982,0.33033154,97884.0,97883.0,0.00011856]
[1733464894637,0.28033154,97884.0,97883.0,0.00011856]
[1733464895722,0.33033154,97884.0,97883.0,0.00011856]
[1733464896779,0.28033154,97884.0,97883.0,0.00011856]
[1733464898309,0.33033154,97884.0,97883.0,0.00011856]
[1733464898522,0.36540483,97884.0,97883.0,0.00011856]
[1733464902056,0.33033154,97884.0,97883.0,0.00011856]
[1733464902703,0.28033154,97884.0,97883.0,0.00011856]
[1733464902922,0.33033154,97884.0,97883.0,0.00011856]
[1733464905368,0.28033154,97884.0,97883.0,0.00011856]
[1733464905763,0.33033154,97884.0,97883.0,0.00011856]
[1733464906516,0.36540483,97884.0,97883.0,0.00011856]
[1733464907708,0.33033154,97884.0,97883.0,0.00011856]
[1733464908672,0.23033154,97884.0,97883.0,0.00011856]
[1733464908826,0.28033154,97884.0,97883.0,0.00011856]
[1733464909202,0.33033154,97884.0,97883.0,0.00011856]
[1733464912226,0.48033154,97884.0,97883.0,0.00011856]
[1733464912426,1.11077669,97884.0,97883.0,0.00011856]
[1733464912699,1.11077669,97884.0,97850.0,0.0008655]
[1733464912700,0.6718,97871.0,97850.0,0.0008655]
[1733464912894,0.77683154,97871.0,97870.0,0.00144575]
[1733464913295,0.98118154,97871.0,97870.0,7.5e-07]
[1733464913507,1.08607646,97871.0,97870.0,7.5e-07]
[1733464914526,1.10701249,97871.0,97870.0,7.5e-07]
[1733464918447,1.10701249,97871.0,97870.0,0.00086615]
[1733464918890,1.00211757,97871.0,97870.0,0.00086615]
[1733464919567,1.00211757,97871.0,97870.0,1.5e-07]
[1733464920693,1.00211757,97871.0,97850.0,0.0008655]
[1733464920694,0.876192,97851.0,97850.0,0.0008655]
[1733464920916,0.98122354,97851.0,97850.0,0.00103959]
[1733464921166,1.08611846,97851.0,97850.0,5.9e-07]
[1733464923898,1.10695967,97851.0,97850.0,5.9e-07]
[1733464924371,1.10695967,97851.0,97850.0,5.9e-07]
[1733464929889,1.10695967,97851.0,97850.0,0.00086639]
[1733464931253,1.10695967,97851.0,97850.0,3.9e-07]
[1733464933441,1.00206475,97851.0,97850.0,3.9e-07]
[1733464940482,0.63026475,97851.0,97850.0,3.9e-07]
[1733464940696,0.78026475,97851.0,97850.0,3.9e-07]
[1733464940919,0.75942354,97851.0,97850.0,3.9e-07]
[1733464941358,0.60942354,97851.0,97850.0,3.9e-07]
[1733464943950,0.40503154,97851.0,97850.0,0.08030039]
[1733464946519,0.40503154,97851.0,97850.0,3.9e-07]
[1733464946942,0.48641179,97851.0,97850.0,3.9e-07]
[1733464947882,0.53641179,97851.0,97850.0,3.9e-07]
[1733464948102,0.68641179,97851.0,97850.0,3.9e-07]
[1733464948315,0.73641179,97851.0,97850.0,3.9e-07]
[1733464949577,0.81911179,97851.0,97850.0,3.9e-07]
[1733464951482,0.83978173,97851.0,97850.0,3.9e-07]
[1733464953388,0.62570148,97851.0,97850.0,3.9e-07]
[1733464956870,0.57570148,97851.0,97850.0,3.9e-07]
[1733464957069,0.62570148,97851.0,97850.0,3.9e-07]
[1733464958113,0.57570148,97851.0,97850.0,3.9e-07]
[1733464958393,0.42570148,97851.0,97850.0,3.9e-07]
[1733464958595,0.47570148,97851.0,97850.0,3.9e-07]
[1733464959082,0.42570148,97851.0,97850.0,3.9e-07]
[1733464959700,0.40503154,97851.0,97850.0,3.9e-07]
[1733464980319,0.48162114,97851.0,97850.0,3.9e-07]
[1733464980535,0.52782114,97851.0,97850.0,3.9e-07]
[1733464980992,0.45123154,97851.0,97850.0,3.9e-07]
[1733464981207,0.40503154,97851.0,97850.0,3.9e-07]
[1733464992193,0.3,97851.0,97850.0,3.9e-07]
[1733464996805,0.204377,97859.0,97850.0,3.9e-07]
[1733464997004,0.10503154,97858.0,97850.0,3.9e-07]
[1733464997793,0.204379,97857.0,97850.0,3.9e-07]
[1733464997998,0.10503154,97856.0,97850.0,3.9e-07]
[1733464998461,0.408768,97855.0,97850.0,3.9e-07]
[1733464998670,0.408776,97853.0,97850.0,3.9e-07]
[1733464998936,0.204392,97851.0,97850.0,3.9e-07]
[1733464999404,0.30942354,97851.0,97850.0,3.9e-07]
[1733465000881,0.58982354,97851.0,97850.0,3.9e-07]
[1733465001148,0.68912095,97851.0,97850.0,3.9e-07]
[1733465003031,0.73432095,97851.0,97850.0,3.9e-07]
[1733465003423,0.63502354,97851.0,97850.0,3.9e-07]
[1733465006156,0.43502354,97851.0,97850.0,3.9e-07]
[1733465008170,0.73502354,97851.0,97850.0,3.9e-07]
[1733465008523,0.73502354,97851.0,97850.0,0.00010039]
[1733465011040,0.98502354,97851.0,97850.0,0.00010039]
[1733465011436,1.08991846,97851.0,97850.0,0.00010039]
[1733465017430,0.98502354,97851.0,97850.0,0.00010039]
[1733465020124,0.98502354,97851.0,97850.0,3.9e-07]
[1733465020972,0.629634,97831.0,97820.0,0.0008654]
[1733465021149,0.73466554,97831.0,97830.0,0.00103845]
[1733465028303,1.00465225,97831.0,97830.0,4.5e-07]
[1733465028518,1.00465225,97831.0,97820.0,0.0008654]
[1733465028519,0.878855,97821.0,97820.0,8.5e-07]
[1733465028743,0.878855,97821.0,97810.0,0.0017286]
[1733465028744,0.3,97811.0,97810.0,0.0017286]
[1733465028968,0.40503154,97811.0,97810.0,0.00190245]
[1733465030115,0.60950654,97811.0,97810.0,0.00190245]
[1733465031819,0.70090429,97811.0,97810.0,0.00190245]
[1733465032060,0.60950654,97811.0,97810.0,0.00190245]
[1733465032699,0.63024487,97811.0,97810.0,0.00190245]
[1733465034212,0.80464487,97811.0,97810.0,0.00190245]
[1733465034453,0.95464487,97811.0,97810.0,0.00190245]
[1733465034874,1.00464487,97811.0,97810.0,4.5e-07]
[1733465035108,1.10953979,97811.0,97810.0,4.5e-07]
[1733465037161,1.00464487,97811.0,97810.0,4.5e-07]
[1733465039637,0.82964487,97811.0,97810.0,4.5e-07]
[1733465039859,0.60950654,97811.0,97810.0,4.5e-07]
[1733465043781,0.60950654,97811.0,97810.0,0.00086625]
[1733465048517,0.88440654,97811.0,97810.0,0.00086625]
[1733465048766,0.98930146,97811.0,97810.0,0.00086625]
[1733465049966,1.08930146,97811.0,97810.0,2.5e-07]
[1733465050430,0.98440654,97811.0,97810.0,2.5e-07]
[1733465052918,0.98440654,97811.0,97800.0,7.5e-07]
[1733465052919,0.829696,97801.0,97800.0,7.5e-07]
[1733465053135,0.504517,97791.0,97780.0,0.0008656]
[1733465053358,0.75954854,97791.0,97790.0,0.00180839]
[1733465055171,0.45954854,97791.0,97790.0,0.00180839]
[1733465055619,0.75954854,97791.0,97790.0,0.00180839]
[1733465056227,0.73954854,97791.0,97790.0,0.00180839]
[1733465058742,0.80577756,97791.0,97790.0,0.00180839]
[1733465058979,0.73954854,97791.0,97790.0,0.00180839]
[1733465060934,0.58954854,97791.0,97790.0,0.00180839]
[1733465078701,0.40503154,97791.0,97790.0,0.07810839]
[1733465081349,0.11015404,97800.0,97798.0,0.10225]
[1733465081350,0.0017314,97800.0,97798.0,0.10225]
[1733465081567,0.0017314,97800.0,97799.0,0.0763]
[1733465085130,0.0017314,97800.0,97795.0,0.09172598]
[1733465085131,0.10676294,97800.0,97795.0,0.09172598]
[1733465085363,0.3,97796.0,97791.0,0.09172598]
[1733465085570,0.204509,97795.0,97790.0,0.00180839]
[1733465085788,0.40503154,97796.0,97790.0,0.00180839]
[1733465087323,0.0017314,97800.0,97791.0,0.102258]
[1733465087537,0.10676294,97800.0,97797.0,0.102252]
[1733465087712,0.0017314,97800.0,97797.0,0.102252]
[1733465087940,0.0017314,97800.0,97797.0,0.204504]
[1733465089340,0.0017314,97800.0,97799.0,0.10225]
[1733465090648,0.0017314,97800.0,97798.0,0.0753]
[1733465090863,0.0017314,97800.0,97799.0,0.10225]
[1733465101465,0.0017314,97800.0,97798.0,0.0753]
[1733465102575,0.0017314,97800.0,97799.0,0.10225]
[1733465104843,0.0017314,97800.0,97799.0,0.50815]
[1733465105272,0.0017314,97800.0,97799.0,0.84622929]
[1733465105507,0.001731,97820.0,97819.0,0.102229]
[1733465109468,0.001731,97820.0,97817.0,0.0010222]
[1733465110110,0.001731,97820.0,97818.0,0.10223]
[1733465110264,0.001731,97820.0,97818.0,0.10325219]
[1733465112840,0.001731,97820.0,97819.0,0.00102219]
[1733465113010,0.001731,97820.0,97819.0,0.18392219]
[1733465113213,0.001731,97820.0,97819.0,0.38392219]
[1733465113417,0.001731,97820.0,97819.0,0.52022565]
[1733465113657,0.001731,97820.0,97819.0,0.85788671]
[1733465113796,0.001731,97820.0,97819.0,0.72056106]
[1733465113997,0.001731,97820.0,97819.0,0.752364]
[1733465114399,0.0017316,97850.0,97829.0,0.287538]
[1733465114699,0.10503154,97849.0,97838.0,0.102209]
[1733465115109,0.51382354,97849.0,97835.0,0.00102202]
[1733465115289,0.204398,97848.0,97835.0,0.00102202]
[1733465115491,0.10503154,97847.0,97835.0,0.00102202]
[1733465115729,0.10503154,97847.0,97833.0,0.00102202]
[1733465116144,0.10503154,97847.0,97834.0,0.102213]
[1733465116533,0.10503154,97847.0,97835.0,0.00102202]
[1733465119806,0.408804,97846.0,97835.0,0.00102202]
[1733465120028,0.408804,97846.0,97829.0,0.1331]
[1733465120029,0.204407,97844.0,97831.0,0.102217]
[1733465120250,0.10503154,97844.0,97833.0,0.102214]
[1733465120466,0.10503154,97844.0,97834.0,0.00102202]
[1733465121199,0.20457297,97848.0,97834.0,0.00102202]
[1733465121200,0.00017397,97848.0,97834.0,0.00102202]
[1733465121399,0.00017397,97848.0,97835.0,0.20544602]
[1733465122216,0.00017397,97848.0,97840.0,0.102207]
[1733465124020,0.00017397,97848.0,97829.0,0.1331]
[1733465124021,0.00017397,97848.0,97847.0,0.4308]
[1733465124222,0.00017397,97848.0,97847.0,0.4538]
[1733465124994,0.0017316,97850.0,97849.0,0.273]
[1733465126827,0.0017316,97850.0,97849.0,0.29301738]
[1733465127719,0.0017316,97850.0,97849.0,0.38436197]
[1733465127927,0.0017316,97860.0,97859.0,0.152187]
[1733465128130,0.0017316,97860.0,97859.0,0.39450455]
[1733465128330,0.0017316,97860.0,97859.0,0.302187]
[1733465131440,0.0017316,97860.0,97859.0,0.31227278]
[1733465131642,0.0017316,97860.0,97859.0,0.44087278]
[1733465131900,0.0017316,97860.0,97859.0,0.48677278]
[1733465136874,0.0017316,97860.0,97859.0,0.61480432]
[1733465137080,0.0017318,97890.0,97878.0,0.05]
[1733465137285,0.0017318,97890.0,97889.0,0.102156]
[1733465138115,0.0017318,97890.0,97889.0,0.252156]
[1733465138295,0.00231281,97890.0,97889.0,0.302156]
[1733465139309,0.00231281,97890.0,97889.0,0.375156]
[1733465139672,0.0017302,97910.0,97898.0,0.05]
[1733465139866,0.0017302,97910.0,97909.0,0.102135]
[1733465139867,0.00178956,97910.0,97909.0,0.102135]
[1733465140639,0.00178956,97910.0,97909.0,0.10315622]
[1733465150507,0.00178956,97910.0,97907.0,0.102137]
[1733465150508,0.13128956,97910.0,97907.0,0.102137]
[1733465150764,0.13128956,97910.0,97885.0,0.13621014]
[1733465150765,0.05,97901.0,97857.0,0.29034559]
[1733465150969,0.2,97851.0,97850.0,0.0008652]
[1733465151201,0.33401252,97851.0,97850.0,0.0008652]
[1733465152122,0.15,97853.0,97850.0,0.0008652]
[1733465152586,0.43576359,97855.0,97850.0,0.0008652]
[1733465152587,0.09052799,97851.0,97850.0,0.0008652]
[1733465152813,0.09052799,97851.0,97850.0,0.00144621]
[1733465153270,0.39052799,97855.0,97850.0,0.00144621]
[1733465153497,0.49555953,97855.0,97850.0,0.00144621]
[1733465153750,0.09052799,97853.0,97850.0,0.00144621]
[1733465153965,0.13576359,97854.0,97850.0,0.00144621]
[1733465154177,0.40503154,97855.0,97850.0,0.00144621]
[1733465154819,0.3,97871.0,97850.0,0.00144621]
[1733465155032,0.3,97878.0,97857.0,0.102189]
[1733465155248,0.10503154,97877.0,97862.0,0.102183]
[1733465155455,0.10503154,97877.0,97863.0,0.0010217]
[1733465155666,0.10503154,97877.0,97859.0,0.102187]
[1733465155874,0.10503154,97877.0,97860.0,0.0010217]
[1733465156868,0.09060662,97871.0,97858.0,0.102188]
[1733465157070,0.09060662,97871.0,97859.0,0.00051132]
[1733465157280,0.13589733,97876.0,97859.0,0.00051132]
[1733465157281,0.09060662,97872.0,97859.0,0.00051132]
[1733465157498,0.09060662,97878.0,97874.0,0.102172]
[1733465157724,0.13589733,97883.0,97860.0,0.10503154]
[1733465157725,0.09060662,97883.0,97875.0,0.00051104]
[1733465157950,0.13589733,97888.0,97876.0,0.10217]
[1733465157951,0.09060662,97888.0,97876.0,0.10217]
[1733465158169,0.09060662,97889.0,97877.0,0.00051091]
[1733465158379,0.09060662,97889.0,97886.0,0.102159]
[1733465158630,0.09060662,97891.0,97878.0,0.0005109]
[1733465158874,0.05,97912.0,97878.0,0.0005109]
[1733465158875,0.09060662,97898.0,97878.0,0.0005109]
[1733465159092,0.18119644,97908.0,97890.0,0.102154]
[1733465159093,0.09060662,97901.0,97890.0,0.102154]
[1733465159311,0.09060662,97903.0,97873.0,0.06919441]
[1733465159543,0.09060662,97904.0,97894.0,0.10215]
[1733465159766,0.19563816,97904.0,97894.0,0.10215]
[1733465160266,0.19574203,97904.0,97894.0,0.10215]
[1733465160468,0.19574203,97904.0,97892.0,0.102152]
[1733465160691,0.09071049,97903.0,97893.0,0.102151]
[1733465160916,0.09071049,97899.0,97895.0,0.102149]
[1733465161379,0.09071049,97899.0,97895.0,0.204299]
[1733465161623,0.09071049,97900.0,97895.0,0.204299]
[1733465161877,0.09071049,97901.0,97895.0,0.204299]
[1733465162112,0.09071049,97902.0,97901.0,0.102144]
[1733465162343,0.09071049,97904.0,97901.0,0.102144]
[1733465162810,0.09071049,97905.0,97901.0,0.204288]
[1733465163292,0.43612509,97908.0,97901.0,0.204288]
[1733465163293,0.09071049,97904.0,97901.0,0.204288]
[1733465163555,0.30005936,97908.0,97901.0,0.204288]
[1733465164681,5.936e-05,97908.0,97907.0,0.102137]
[1733465169320,5.936e-05,97908.0,97895.0,0.102149]
[1733465169321,5.936e-05,97908.0,97870.0,0.00390008]
[1733465169485,0.10842264,97893.0,97885.0,0.10216]
[1733465169858,0.10842264,97893.0,97882.0,0.102163]
[1733465170407,0.10842264,97893.0,97874.0,0.10503154]
[1733465170408,0.10842264,97893.0,97887.0,0.102158]
[1733465170650,0.10842264,97900.0,97892.0,0.102152]
[1733465170893,0.58672853,97907.0,97892.0,0.102152]
[1733465170894,0.09084849,97905.0,97892.0,0.102152]
[1733465171125,0.10503154,97905.0,97897.0,0.102147]
[1733465171374,0.10503154,97905.0,97892.0,0.102152]
[1733465171580,0.10842264,97902.0,97889.0,0.102155]
[1733465172697,5.936e-05,97908.0,97879.0,0.0099551]
[1733465172940,5.936e-05,97908.0,97904.0,0.10214]
[1733465173796,5.936e-05,97908.0,97905.0,0.102139]
[1733465173997,5.936e-05,97908.0,97905.0,0.204278]
[1733465176451,5.936e-05,97908.0,97888.0,0.0753]
[1733465176878,5.936e-05,97908.0,97894.0,0.102151]
[1733465177051,5.936e-05,97908.0,97899.0,0.102145]
[1733465177925,5.936e-05,97908.0,97894.0,0.102151]
[1733465177926,5.936e-05,97908.0,97900.0,0.102145]
[1733465178347,5.936e-05,97908.0,97905.0,0.102139]
[1733465181189,5.936e-05,97908.0,97907.0,0.252137]
[1733465181404,5.936e-05,97908.0,97907.0,0.40616854]
[1733465182762,5.936e-05,97908.0,97907.0,0.50696854]
[1733465191349,5.936e-05,97908.0,97907.0,0.51711365]
[1733465192590,5.936e-05,97908.0,97907.0,0.54886551]
[1733465201753,0.0017322,97940.0,97908.0,0.023]
[1733465201952,0.0017322,97940.0,97939.0,0.091893]
[1733465202243,0.0017322,97940.0,97939.0,0.36992454]
[1733465202244,5.933e-05,97940.0,97939.0,0.36992454]
[1733465202593,5.933e-05,97940.0,97939.0,0.39025756]
[1733465204185,0.0008646,97960.0,97939.0,0.39025756]
[1733465204186,0.0008646,97960.0,97949.0,0.023]
[1733465204389,0.0008646,97960.0,97959.0,0.091875]
[1733465204656,0.0017308,97970.0,97966.0,0.091867]
[1733465204865,0.0008645,97980.0,97966.0,0.091867]
[1733465204866,0.0008645,97980.0,97979.0,0.091856]
[1733465205290,0.0008645,97980.0,97979.0,0.19688754]
[1733465206190,0.0010386,97980.0,97979.0,0.21722056]
[1733465206646,0.0010386,97980.0,97979.0,0.11218902]
[1733465210181,0.0010386,97980.0,97979.0,0.21722056]
[1733465212124,0.0010386,97980.0,97979.0,0.11218902]
[1733465215573,0.0010386,97980.0,97979.0,0.21722056]
[1733465223779,0.0010386,97980.0,97979.0,0.02033302]
[1733465225400,0.0010386,97980.0,97970.0,0.00173]
[1733465225401,0.204142,97971.0,97970.0,0.00173]
[1733465227467,0.330942,97971.0,97970.0,0.00173]
[1733465228629,0.280942,97971.0,97970.0,0.00173]
[1733465228985,0.330942,97971.0,97970.0,0.00173]
[1733465231579,0.280942,97971.0,97970.0,0.00173]
[1733465231850,0.330942,97971.0,97970.0,0.00173]
[1733465233430,0.0476386,97980.0,97970.0,0.00173]
[1733465233654,0.0010386,97980.0,97970.0,0.00173]
[1733465234560,0.10946124,97980.0,97970.0,0.00173]
[1733465234791,0.40825,97979.0,97970.0,0.00173]
[1733465235246,0.204125,97979.0,97970.0,0.00173]
[1733465243178,0.204137,97974.0,97970.0,0.00173]
[1733465243645,0.408274,97974.0,97970.0,0.00173]
[1733465243909,0.0010386,97980.0,97977.0,0.091858]
[1733465244194,0.0010386,97980.0,97977.0,0.183716]
[1733465244400,0.0010386,97980.0,97977.0,0.091858]
[1733465244868,0.0010386,97980.0,97977.0,0.183716]
[1733465245542,0.0010386,97980.0,97977.0,0.091858]
[1733465245742,0.0010386,97980.0,97977.0,0.183716]
[1733465248183,0.0010386,97980.0,97979.0,0.01995115]
[1733465248369,0.0010386,97980.0,97975.0,0.091859]
[1733465249020,0.0010386,97980.0,97978.0,0.02072439]
[1733465250019,0.204125,97979.0,97970.0,0.00173]
[1733465250961,0.204135,97975.0,97970.0,0.00173]
[1733465251505,0.40827,97975.0,97970.0,0.00173]
[1733465252246,0.408274,97973.0,97970.0,0.00173]
[1733465253158,0.458274,97973.0,97970.0,0.00173]
[1733465254166,0.204129,97977.0,97970.0,0.00173]
[1733465254416,0.254129,97977.0,97970.0,0.00173]
[1733465254605,0.204139,97973.0,97970.0,0.00173]
[1733465255189,0.204131,97976.0,97970.0,0.00173]
[1733465256402,0.0010386,97980.0,97970.0,0.00173]
[1733465256791,0.204125,97979.0,97970.0,0.00173]
[1733465257673,0.204127,97978.0,97970.0,0.00173]
[1733465258022,0.204141,97972.0,97970.0,0.00173]
[1733465260534,0.05,97971.0,97970.0,0.00173]
[1733465266120,0.0010386,97980.0,97970.0,0.00173]
[1733465266316,0.0010386,97980.0,97976.0,0.091858]
[1733465266518,0.0010386,97980.0,97971.0,0.0795]
[1733465267307,0.3992746,97983.0,97971.0,0.0795]
[1733465267549,0.05,97986.0,97971.0,0.0795]
[1733465267550,0.05,97986.0,97971.0,0.1715371]
[1733465267755,0.254112,97986.0,97972.0,0.091862]
[1733465268966,0.05,97986.0,97977.0,0.091858]
[1733465269930,0.3,97988.0,97971.0,0.0796741]
[1733465270256,0.3,97988.0,97973.0,0.091862]
[1733465270454,0.2058328,97990.0,97974.0,0.09186]
[1733465270686,0.0017308,97990.0,97978.0,0.091856]
[1733465271491,0.0017308,97990.0,97973.0,0.091862]
[1733465271692,0.204104,97989.0,97973.0,0.091862]
[1733465271892,0.204104,97989.0,97974.0,0.091861]
[1733465272122,0.204104,97989.0,97975.0,0.09186]
[1733465272363,0.0017308,97990.0,97975.0,0.09186]
[1733465272506,0.0017308,97990.0,97975.0,0.18372]
[1733465272718,0.0017308,97990.0,97979.0,0.091855]
[1733465274023,0.204104,97989.0,97977.0,0.091858]
[1733465274814,0.408208,97989.0,97972.0,0.091862]
[1733465275015,0.05,97986.0,97971.0,0.0001741]
[1733465275589,0.204123,97981.0,97971.0,0.0001741]
[1733465275729,0.05,97985.0,97971.0,0.0001741]
[1733465275934,0.204104,97989.0,97971.0,0.0001741]
[1733465276113,0.05,97985.0,97973.0,0.091862]
[1733465276325,0.204114,97984.0,97971.0,0.0001741]
[1733465277164,0.204114,97984.0,97972.0,0.091862]
[1733465277735,0.204114,97984.0,97971.0,0.0001741]
[1733465282374,0.05,97985.0,97971.0,0.0001741]
[1733465282375,0.204126,97979.0,97971.0,0.0001741]
[1733465282591,0.204117,97983.0,97971.0,0.0001741]
[1733465284072,0.408235,97983.0,97971.0,0.0001741]
[1733465284472,0.204126,97979.0,97971.0,0.0001741]
[1733465285066,0.204119,97982.0,97971.0,0.0001741]
[1733465285290,0.204126,97979.0,97971.0,0.0001741]
[1733465285933,0.05,97988.0,97971.0,0.0001741]
[1733465286137,0.2558338,97990.0,97976.0,0.091858]
[1733465286342,0.0517308,97990.0,97976.0,0.091858]
[1733465286616,0.05,97985.0,97976.0,0.091858]
[1733465286753,0.0517308,97990.0,97976.0,0.091858]
[1733465287453,0.05,97985.0,97976.0,0.091858]
[1733465287657,0.05,97985.0,97973.0,0.091862]
[1733465289287,0.05,97985.0,97973.0,0.18349548]
[1733465289521,0.05,97985.0,97975.0,0.09163348]
[1733465289695,0.254114,97985.0,97975.0,0.09163348]
[1733465290250,0.254114,97985.0,97975.0,0.09162594]
[1733465290462,0.05,97985.0,97971.0,0.09180004]
[1733465290755,0.05,97985.0,97976.0,0.091858]
[1733465291521,0.0517308,97990.0,97981.0,0.091854]
[1733465291679,0.0017308,97990.0,97982.0,0.0827]
[1733465291880,0.0017308,97990.0,97984.0,0.091851]
[1733465292077,0.0017308,97990.0,97984.0,0.183702]
[1733465292301,0.0017308,97990.0,97986.0,0.091849]
[1733465293327,0.0017308,97990.0,97984.0,0.091851]
[1733465294700,0.0017308,97990.0,97984.0,0.183702]
[1733465295322,0.0017308,97990.0,97984.0,0.091851]
[1733465295905,0.0017308,97990.0,97984.0,0.183702]
[1733465296108,0.0017308,97990.0,97984.0,0.091851]
[1733465296303,0.0017308,97990.0,97988.0,0.091847]
[1733465299083,0.0017308,97990.0,97984.0,0.091851]
[1733465299467,0.0017308,97990.0,97984.0,0.183702]
[1733465299676,0.0017308,97990.0,97984.0,0.091851]
[1733465299847,0.0017308,97990.0,97988.0,0.091847]
[1733465309982,0.0017308,97990.0,97988.0,0.18341395]
[1733465310181,0.0017308,97990.0,97988.0,0.091847]
[1733465310396,0.0017308,97990.0,97988.0,0.18341395]
[1733465311048,0.0017308,97990.0,97988.0,0.091847]
[1733465311281,0.0017308,97990.0,97988.0,0.18341395]
[1733465313223,0.0017308,97990.0,97988.0,0.091847]
[1733465314480,0.0017308,97990.0,97988.0,0.1002842]
[1733465317354,0.0017308,97990.0,97988.0,0.091847]
[1733465319441,0.0017308,97990.0,97983.0,0.09153845]
[1733465319651,0.0017308,97990.0,97986.0,0.091849]
[1733465319851,0.0017308,97990.0,97981.0,0.09153845]
[1733465320052,0.0017308,97990.0,97987.0,0.091848]
[1733465320400,0.0017308,97990.0,97987.0,0.183696]
[1733465320647,0.0017308,97990.0,97987.0,0.091848]
[1733465320854,0.0017308,97990.0,97983.0,0.09153845]
[1733465321203,0.0017308,97990.0,97983.0,0.18338945]
[1733465321403,0.0017308,97990.0,97982.0,0.09153845]
[1733465321604,0.0017308,97990.0,97980.0,0.01006169]
[1733465321854,0.0017308,97990.0,97980.0,0.10160014]
[1733465322054,0.0017308,97990.0,97980.0,0.01006169]
[1733465322456,0.05,97981.0,97980.0,0.0017296]
[1733465324682,0.1283,97981.0,97980.0,0.0017296]
[1733465324905,0.28460736,97981.0,97980.0,0.0017296]
[1733465325074,0.33033154,97981.0,97980.0,0.0017296]
[1733465325280,0.38033154,97981.0,97980.0,0.0017296]
[1733465325483,0.47161404,97981.0,97980.0,0.0017296]
[1733465325683,0.38033154,97981.0,97980.0,0.0017296]
[1733465326229,0.47150859,97981.0,97980.0,0.0017296]
[1733465326426,0.38033154,97981.0,97980.0,0.0017296]
[1733465326761,0.43522646,97981.0,97980.0,0.0017296]
[1733465326975,0.33033154,97981.0,97980.0,0.0017296]
[1733465327535,0.33873723,97981.0,97980.0,0.0017296]
[1733465329777,0.21343723,97981.0,97980.0,0.0017296]
[1733465330186,0.51343723,97981.0,97980.0,0.0017296]
[1733465330745,0.05,97981.0,97980.0,0.0017296]
[1733465334167,0.1,97981.0,97980.0,0.0017296]
[1733465334569,0.20630739,97981.0,97980.0,0.0017296]
[1733465334767,0.20503154,97981.0,97980.0,0.0017296]
[1733465337013,0.05,97983.0,97980.0,0.0017296]
[1733465337259,0.0017308,97990.0,97989.0,0.091847]
[1733465337698,0.0017308,97990.0,97989.0,0.168447]
[1733465349328,0.0017308,97990.0,97989.0,0.213647]
[1733465349524,0.0017308,97990.0,97989.0,0.31867854]
[1733465352482,0.04441088,98005.0,98004.0,0.091832]
[1733465353331,0.0017308,98010.0,98009.0,0.091828]
[1733465353806,0.04672179,98010.0,98009.0,0.091828]
[1733465354406,0.00231091,98010.0,98009.0,0.091828]
[1733465354524,0.04672179,98010.0,98009.0,0.091828]
[1733465356165,0.00231091,98010.0,98009.0,0.091828]
[1733465356378,0.04672179,98010.0,98009.0,0.091828]
[1733465357253,0.04672179,98010.0,98005.0,0.183664]
[1733465357566,0.04441088,98009.0,98005.0,0.183664]
[1733465358407,0.04441088,98009.0,98005.0,0.091832]
[1733465359005,0.04441088,98009.0,98005.0,0.183663]
[1733465359883,0.04441088,98009.0,98005.0,0.091831]
[1733465360082,0.04437088,98009.0,98005.0,0.091831]
[1733465362484,0.00231091,98010.0,98005.0,0.091831]
[1733465362670,0.04437088,98009.0,98000.0,0.02021892]
[1733465362872,0.04437088,98009.0,98006.0,0.091831]
[1733465367597,0.04437088,98008.0,98006.0,0.091831]
[1733465368177,0.04437088,98008.0,98007.0,0.09183]
[1733465369074,0.00231091,98010.0,98007.0,0.09183]
[1733465369422,0.04437088,98008.0,98007.0,0.09183]
[1733465372557,0.00231091,98010.0,98007.0,0.09183]
[1733465372721,0.04437088,98008.0,98007.0,0.09183]
[1733465375265,0.04437088,98008.0,98002.0,0.183668]
[1733465375505,0.04437088,98008.0,98006.0,0.09183]
[1733465378599,0.04437088,98008.0,98003.0,0.091833]
[1733465379240,0.04437088,98008.0,98003.0,0.183666]
[1733465380224,0.04437088,98008.0,98003.0,0.091833]
[1733465382489,0.04437088,98001.0,98000.0,0.0017308]
[1733465384580,0.04437088,98002.0,98001.0,0.091835]
[1733465385004,0.04437088,98001.0,98000.0,0.0017308]
[1733465385218,0.00231091,98010.0,98000.0,0.0017308]
[1733465385219,0.04437088,98002.0,98000.0,0.3028901]
[1733465385439,0.04437088,98001.0,98000.0,0.0017308]
[1733465385652,0.04437088,98002.0,98001.0,0.091835]
[1733465385859,0.04437088,98002.0,98001.0,0.39237609]
[1733465387823,0.04437088,98002.0,98001.0,0.57579949]
[1733465388064,0.04437088,98004.0,98001.0,0.57579949]
[1733465388261,0.04437088,98002.0,98001.0,0.2752584]